fUSD/lending_fUSD_20260218
["ID","MTS","AMOUNT","RATE_DAILY","PERIOD"]
[405942058,1771432244427,-3500.0,0.00017015,2]
[405942059,1771432244437,-506.0,0.00017019,2]
[405942061,1771432244634,-500.0,0.00017099,2]
[405942063,1771432244644,-500.0,0.00017099,2]
[405942065,1771432244653,-500.0,0.00017099,2]
[405942067,1771432244663,-500.0,0.00017099,2]
[405942069,1771432244671,-500.0,0.00017099,2]
[405942071,1771432244681,-500.0,0.00017099,2]
[405942073,1771432244691,-500.0,0.00017099,2]
[405942074,1771432244700,-194.416276,0.00017099,2]
[405942075,1771432244709,-277.35679052,0.00017099,2]
[405942076,1771432244719,-383.91,0.00017247,2]
[405942077,1771432244728,-350.0,0.00017256,2]
[405942078,1771432244738,-160.0,0.0001736,2]
[405942079,1771432244747,-350.0,0.00017368,2]
[405942080,1771432244756,-2836.0,0.00017407,2]
[405942081,1771432244766,-183.47,0.000175,2]
[405942082,1771432244775,-4000.0,0.00017563,2]
[405942083,1771432244785,-1100.0,0.000176,6]
[405942084,1771432244795,-350.0,0.00017613,2]
[405942085,1771432244804,-4207.67642787,0.0001764,2]
[405942086,1771432244814,-287.61899177,0.00017647,2]
[405942087,1771432244823,-2836.0,0.0001768,2]
[405942088,1771432244833,-190.8,0.00017694,2]
[405942089,1771432244843,-650.14,0.00017697,2]
[405942090,1771432244852,-650.14,0.00017697,2]
[405942091,1771432244861,-650.14,0.00017697,2]
[405942092,1771432244871,-650.14,0.00017697,2]
[405942093,1771432244880,-650.26047002,0.00017697,2]
[405942094,1771432244890,-1223.27,0.00017697,2]
[405942095,1771432244899,-1223.27,0.00017697,2]
[405942096,1771432244908,-1223.27,0.00017697,2]
[405942097,1771432244918,-1223.27,0.00017697,2]
[405942098,1771432244928,-1223.4953454,0.00017697,2]
[405942099,1771432244937,-500.0,0.00017698,2]
[405942100,1771432244946,-150.0,0.00017698,2]
[405942101,1771432244955,-150.0,0.00017698,2]
[405942102,1771432244965,-150.0,0.00017698,2]
[405942103,1771432244975,-500.0,0.00017698,2]
[405942104,1771432244984,-150.0,0.00017698,2]
[405942105,1771432244993,-150.0,0.00017698,2]
[405942106,1771432245003,-582.0,0.00017698,2]
[405942107,1771432245012,-466.0,0.00017698,2]
[405942108,1771432245022,-150.0,0.00017698,2]
[405942109,1771432245032,-150.0,0.00017698,2]
[405942110,1771432245041,-500.0,0.00017698,2]
[405942111,1771432245050,-150.0,0.00017698,2]
[405942112,1771432245060,-511.0,0.00017698,2]
[405942113,1771432245069,-200.0,0.00017698,2]
[405942114,1771432245078,-200.0,0.00017698,2]
[405942115,1771432245088,-150.0,0.00017698,2]
[405942116,1771432245097,-500.0,0.00017698,2]
[405942117,1771432245106,-500.0,0.00017698,2]
[405942118,1771432245116,-150.0,0.00017698,2]
[405942119,1771432245125,-500.0,0.00017698,2]
[405942120,1771432245134,-150.0,0.00017698,2]
[405942121,1771432245143,-500.0,0.00017698,2]
[405942122,1771432245153,-150.0,0.00017698,2]
[405942123,1771432245162,-500.0,0.00017698,2]
[405942124,1771432245172,-500.0,0.00017698,2]
[405942125,1771432245184,-500.0,0.00017698,2]
[405942126,1771432245194,-500.0,0.00017698,2]
[405942127,1771432245203,-150.0,0.00017698,2]
[405942129,1771432245212,-150.0,0.00017698,2]
[405942131,1771432245223,-150.0,0.00017698,2]
[405942133,1771432245232,-150.0,0.00017698,2]
[405942135,1771432245241,-150.0,0.00017698,2]
[405942137,1771432245251,-150.0,0.00017698,2]
[405942138,1771432245260,-150.0,0.00017698,2]
[405942139,1771432245270,-150.0,0.00017698,2]
[405942140,1771432245279,-150.0,0.00017698,2]
[405942141,1771432245288,-1100.0,0.000177,6]
[405942142,1771432245297,-1000.0,0.00017722,2]
[405942143,1771432245306,-1000.0,0.00017728,2]
[405942144,1771432245315,-350.0,0.00017732,2]
[405942145,1771432245324,-1000.0,0.00017733,2]
[405942146,1771432245333,-1000.0,0.00017736,2]
[405942147,1771432245342,-1000.0,0.00017736,2]
[405942148,1771432245351,-1000.0,0.0001774,2]
[405942149,1771432245360,-150.0,0.00017746,2]
[405942150,1771432245369,-150.0,0.00017749,2]
[405942151,1771432245380,-500.0,0.00017753,2]
[405942152,1771432245390,-150.0,0.00017753,2]
[405942153,1771432245399,-150.0,0.00017753,2]
[405942154,1771432245408,-150.0,0.00017753,2]
[405942155,1771432245417,-500.0,0.00017753,2]
[405942156,1771432245426,-200.0,0.00017753,2]
[405942157,1771432245435,-150.0,0.00017753,2]
[405942158,1771432245444,-582.0,0.00017753,2]
[405942159,1771432245454,-466.0,0.00017753,2]
[405942160,1771432245464,-200.0,0.00017753,2]
[405942161,1771432245475,-200.0,0.00017753,2]
[405942162,1771432245484,-500.0,0.00017753,2]
[405942163,1771432245493,-200.0,0.00017753,2]
[405942164,1771432245503,-511.0,0.00017753,2]
[405942165,1771432245513,-150.0,0.00017753,2]
[405942166,1771432245522,-500.0,0.00017753,2]
[405942167,1771432245531,-500.0,0.00017753,2]
[405942168,1771432245541,-150.0,0.00017753,2]
[405942169,1771432245550,-500.0,0.00017753,2]
[405942170,1771432245558,-500.0,0.00017753,2]
[405942172,1771432245568,-500.0,0.00017753,2]
[405942174,1771432245577,-500.0,0.00017753,2]
[405942175,1771432245587,-500.0,0.00017753,2]
[405942177,1771432245597,-500.0,0.00017753,2]
[405942179,1771432245606,-150.0,0.00017753,2]
[405942182,1771432245615,-150.0,0.00017753,2]
[405942184,1771432245626,-150.0,0.00017753,2]
[405942186,1771432245635,-150.0,0.00017753,2]
[405942189,1771432245645,-150.0,0.00017753,2]
[405942190,1771432245654,-1000.0,0.00017756,2]
[405942191,1771432245663,-1000.0,0.00017757,2]
[405942192,1771432245672,-1000.0,0.00017758,2]
[405942193,1771432245681,-1000.0,0.0001776,2]
[405942194,1771432245690,-1000.0,0.00017761,2]
[405942195,1771432245699,-1000.0,0.00017766,2]
[405942196,1771432245708,-1000.0,0.00017767,2]
[405942197,1771432245717,-150.0,0.00017768,2]
[405942198,1771432245726,-1000.0,0.00017769,2]
[405942199,1771432245736,-1000.0,0.00017774,2]
[405942200,1771432245745,-150.0,0.00017782,2]
[405942201,1771432245755,-1000.0,0.00017788,2]
[405942202,1771432245764,-1000.0,0.00017789,2]
[405942203,1771432245772,-1000.0,0.00017795,2]
[405942205,1771432245783,-1000.0,0.00017796,2]
[405942207,1771432245792,-150.0,0.00017798,2]
[405942209,1771432245802,-379.92,0.00017799,2]
[405942211,1771432245811,-1100.0,0.000178,6]
[405942213,1771432245820,-1000.0,0.00017805,2]
[405942215,1771432245829,-500.0,0.00017808,2]
[405942217,1771432245839,-150.0,0.00017808,2]
[405942219,1771432245848,-150.0,0.00017808,2]
[405942221,1771432245857,-150.0,0.00017808,2]
[405942223,1771432245867,-500.0,0.00017808,2]
[405942225,1771432245876,-150.0,0.00017808,2]
[405942227,1771432245885,-582.0,0.00017808,2]
[405942229,1771432245894,-466.0,0.00017808,2]
[405942231,1771432245903,-500.0,0.00017808,2]
[405942233,1771432245913,-511.0,0.00017808,2]
[405942235,1771432245922,-200.0,0.00017808,2]
[405942238,1771432245932,-500.0,0.00017808,2]
[405942241,1771432245941,-200.0,0.00017808,2]
[405942244,1771432245951,-150.0,0.00017808,2]
[405942246,1771432245960,-500.0,0.00017808,2]
[405942248,1771432245970,-230.2407722,0.00017808,2]
[405942250,1771432245980,-500.0,0.00017808,2]
[405942252,1771432245990,-500.0,0.00017808,2]
[405942254,1771432245999,-500.0,0.00017808,2]
[405942256,1771432246008,-500.0,0.00017808,2]
[405942258,1771432246017,-200.0,0.00017808,2]
[405942260,1771432246027,-200.0,0.00017808,2]
[405942262,1771432246037,-200.0,0.00017808,2]
[405942264,1771432246046,-200.0,0.00017808,2]
[405942266,1771432246055,-150.0,0.00017808,2]
[405942268,1771432246064,-1080.27787936,0.00017808,2]
[405942269,1771432246074,-150.0,0.00017815,2]
[405942270,1771432246085,-2000.0,0.0001782,2]
[405942271,1771432246095,-2000.0,0.0001782,2]
[405942272,1771432246104,-1000.0,0.00017822,2]
[405942273,1771432246114,-150.0,0.00017824,2]
[405942274,1771432246123,-1000.0,0.00017824,2]
[405942275,1771432246132,-1000.0,0.00017825,2]
[405942276,1771432246141,-1000.0,0.00017831,2]
[405942277,1771432246151,-150.0,0.00017835,2]
[405942278,1771432246160,-1000.0,0.00017839,2]
[405942279,1771432246170,-1000.0,0.00017842,2]
[405942280,1771432246184,-1000.0,0.00017848,2]
[405942281,1771432246193,-150.0,0.00017849,2]
[405942282,1771432246202,-1000.0,0.0001785,2]
[405942283,1771432246211,-1000.0,0.00017853,2]
[405942284,1771432246221,-150.0,0.00017853,2]
[405942285,1771432246230,-1000.0,0.00017855,2]
[405942286,1771432246239,-190.8,0.00017855,2]
[405942287,1771432246248,-1000.0,0.00017857,2]
[405942288,1771432246261,-150.0,0.00017861,2]
[405942289,1771432246270,-500.0,0.00017862,2]
[405942290,1771432246279,-150.0,0.00017862,2]
[405942291,1771432246289,-150.0,0.00017862,2]
[405942292,1771432246298,-150.0,0.00017862,2]
[405942293,1771432246307,-500.0,0.00017862,2]
[405942294,1771432246316,-280.29085038,0.00017862,2]
[405942295,1771432246325,-582.0,0.00017862,2]
[405942296,1771432246334,-466.0,0.00017862,2]
[405942297,1771432246343,-500.0,0.00017862,2]
[405942298,1771432246352,-511.0,0.00017862,2]
[405942299,1771432246361,-500.0,0.00017862,2]
[405942300,1771432246369,-250.0,0.00017862,2]
[405942301,1771432246378,-500.0,0.00017862,2]
[405942302,1771432246387,-500.0,0.00017862,2]
[405942303,1771432246397,-500.0,0.00017862,2]
[405942304,1771432246406,-500.0,0.00017862,2]
[405942305,1771432246415,-500.0,0.00017862,2]
[405942306,1771432246424,-1000.0,0.00017863,2]
[405942307,1771432246433,-1000.0,0.00017865,2]
[405942308,1771432246443,-1000.0,0.00017875,2]
[405942309,1771432246452,-1000.0,0.00017876,2]
[405942310,1771432246462,-150.0,0.00017879,2]
[405942311,1771432246471,-1000.0,0.00017879,2]
[405942312,1771432246480,-1000.0,0.0001788,2]
[405942313,1771432246489,-1000.0,0.00017883,2]
[405942314,1771432246498,-1000.0,0.00017883,2]
[405942315,1771432246507,-1000.0,0.0001789,2]
[405942316,1771432246517,-1000.0,0.00017895,2]
[405942317,1771432246526,-1000.0,0.00017896,2]
[405942318,1771432246536,-47536.88696193,0.00017896,2]
[405942319,1771432246545,-1000.0,0.00017899,2]
[405942320,1771432246554,-25000.0,0.000179,3]
[405942321,1771432246563,-39986.09378908,0.000179,2]
[405942322,1771432246572,-1100.0,0.000179,6]
[405942323,1771432246581,-285.65412831,0.000179,2]
[405942324,1771432246590,-2245.76153974,0.000179,2]
[405942326,1771432246600,-1000.0,0.00017903,2]
[405942328,1771432246610,-150.0,0.00017905,2]
[405942330,1771432246619,-288.61284119,0.00017906,2]
[405942332,1771432246629,-500.0,0.00017917,2]
[405942334,1771432246639,-250.0,0.00017917,2]
[405942336,1771432246648,-150.0,0.00017917,2]
[405942337,1771432246657,-250.0,0.00017917,2]
[405942339,1771432246667,-500.0,0.00017917,2]
[405942341,1771432246676,-582.0,0.00017917,2]
[405942342,1771432246685,-466.0,0.00017917,2]
[405942343,1771432246695,-500.0,0.00017917,2]
[405942344,1771432246703,-511.0,0.00017917,2]
[405942345,1771432246713,-500.0,0.00017917,2]
[405942346,1771432246722,-500.0,0.00017917,2]
[405942347,1771432246731,-500.0,0.00017917,2]
[405942348,1771432246740,-500.0,0.00017917,2]
[405942349,1771432246749,-500.0,0.00017917,2]
[405942350,1771432246759,-500.0,0.00017917,2]
[405942351,1771432246768,-1000.0,0.00017919,2]
[405942352,1771432246777,-1000.0,0.00017925,2]
[405942353,1771432246787,-150.0,0.00017927,2]
[405942354,1771432246796,-150.0,0.00017927,2]
[405942355,1771432246805,-150.0,0.00017942,2]
[405942356,1771432246815,-1000.0,0.00017943,2]
[405942357,1771432246825,-150.0,0.00017944,2]
[405942358,1771432246835,-1000.0,0.00017949,2]
[405942359,1771432246845,-1000.0,0.00017949,2]
[405942360,1771432246855,-150.0,0.00017952,2]
[405942361,1771432246864,-1000.0,0.00017954,2]
[405942362,1771432246875,-1000.0,0.00017956,2]
[405942363,1771432246884,-1000.0,0.00017958,2]
[405942364,1771432246895,-150.0,0.0001796,2]
[405942365,1771432246905,-1000.0,0.0001796,2]
[405942366,1771432246916,-996.49958588,0.00017968,2]
[405942367,1771432246927,-300.0,0.0001797,2]
[405942368,1771432246937,-300.0,0.0001797,2]
[405942369,1771432246947,-400.0,0.0001797,2]
[405942370,1771432246957,-400.0,0.0001797,2]
[405942371,1771432246966,-400.0,0.0001797,2]
[405942372,1771432246975,-400.0,0.0001797,2]
[405942373,1771432246984,-602.41999999,0.0001797,2]
[405942374,1771432246993,-500.0,0.00017972,2]
[405942375,1771432247003,-250.0,0.00017972,2]
[405942376,1771432247014,-500.0,0.00017972,2]
[405942377,1771432247023,-582.0,0.00017972,2]
[405942378,1771432247033,-466.0,0.00017972,2]
[405942379,1771432247042,-500.0,0.00017972,2]
[405942380,1771432247052,-511.0,0.00017972,2]
[405942381,1771432247061,-500.0,0.00017972,2]
[405942382,1771432247072,-500.0,0.00017972,2]
[405942383,1771432247083,-500.0,0.00017972,2]
[405942384,1771432247094,-500.0,0.00017972,2]
[405942385,1771432247106,-500.0,0.00017972,2]
[405942386,1771432247118,-224.20559036,0.00017972,2]
[405942387,1771432247131,-1000.0,0.00017972,2]
[405942388,1771432247142,-1000.0,0.00017975,2]
[405942389,1771432247153,-150.0,0.00017976,2]
[405942390,1771432247163,-1000.0,0.00017982,2]
[405942391,1771432247172,-150.0,0.00017985,2]
[405942392,1771432247185,-1000.0,0.00017986,2]
[405942393,1771432247195,-3063.5753684,0.00017988,2]
[405942394,1771432247206,-29915.7322084,0.00017988,2]
[405942395,1771432247217,-8164.5187233,0.00017988,2]
[405942396,1771432247227,-152.1671399,0.00017988,2]
[405942397,1771432247238,-506.0,0.00017988,3]
[405942398,1771432247248,-1000.0,0.00017989,2]
[405942399,1771432247259,-1447.46038835,0.0001799,2]
[405942400,1771432247273,-151.0,0.00017996,5]
[405942401,1771432247288,-578.20924308,0.00017996,5]
[405942402,1771432247299,-151.0,0.00017996,5]
[405942403,1771432247314,-599.60298508,0.00017996,5]
[405942404,1771432247335,-151.0,0.00017996,5]
[405942405,1771432247346,-151.0,0.00017996,5]
[405942406,1771432247356,-151.0,0.00017996,5]
[405942407,1771432247367,-693.3919763,0.00017996,5]
[405942408,1771432247377,-151.0,0.00017996,5]
[405942409,1771432247388,-719.04747942,0.00017996,5]
[405942410,1771432247398,-151.0,0.00017996,5]
[405942411,1771432247408,-745.65223616,0.00017996,5]
[405942412,1771432247418,-151.0,0.00017996,5]
[405942413,1771432247428,-773.2413689,0.00017996,5]
[405942414,1771432247438,-151.0,0.00017996,5]
[405942415,1771432247447,-801.85129955,0.00017996,5]
[405942416,1771432247456,-831.51979763,0.00017996,5]
[405942417,1771432247466,-151.0,0.00017996,5]
[405942418,1771432247476,-862.28603014,0.00017996,5]
[405942419,1771432247487,-500.0,0.00017996,5]
[405942420,1771432247497,-151.0,0.00017996,5]
[405942421,1771432247508,-894.19061326,0.00017996,5]
[405942422,1771432247518,-927.27566595,0.00017996,5]
[405942423,1771432247528,-500.0,0.00017996,5]
[405942424,1771432247538,-961.58486559,0.00017996,5]
[405942425,1771432247548,-500.0,0.00017996,5]
[405942426,1771432247560,-997.16350561,0.00017996,5]
[405942427,1771432247573,-500.0,0.00017996,5]
[405942428,1771432247584,-500.0,0.00017996,5]
[405942429,1771432247595,-500.0,0.00017996,5]
[405942430,1771432247607,-500.0,0.00017996,5]
[405942431,1771432247618,-174.61919141,0.00017996,5]
[405942432,1771432247630,-500.0,0.00017996,5]
[405942433,1771432247640,-181.08010149,0.00017996,5]
[405942434,1771432247651,-500.0,0.00017996,5]
[405942435,1771432247662,-187.78006525,0.00017996,5]
[405942436,1771432247673,-500.0,0.00017996,5]
[405942437,1771432247684,-194.72792766,0.00017996,5]
[405942438,1771432247694,-500.0,0.00017996,5]
[405942439,1771432247704,-201.93286099,0.00017996,5]
[405942440,1771432247715,-209.40437685,0.00017996,5]
[405942441,1771432247727,-500.0,0.00017996,5]
[405942442,1771432247737,-500.0,0.00017996,5]
[405942443,1771432247747,-500.0,0.00017996,5]
[405942444,1771432247757,-500.0,0.00017996,5]
[405942445,1771432247768,-500.0,0.00017996,5]
[405942446,1771432247779,-500.0,0.00017996,5]
[405942447,1771432247790,-500.0,0.00017996,5]
[405942448,1771432247800,-500.0,0.00017996,5]
[405942449,1771432247812,-500.0,0.00017996,5]
[405942450,1771432247823,-500.0,0.00017996,5]
[405942451,1771432247834,-500.0,0.00017996,5]
[405942452,1771432247844,-155.0,0.00017999,2]
[405942453,1771432247855,-300.0,0.00017999,2]
[405942454,1771432247865,-500.0,0.00017999,2]
[405942455,1771432247875,-500.0,0.00017999,2]
[405942456,1771432247886,-500.0,0.00017999,2]
[405942457,1771432247896,-500.0,0.00017999,2]
[405942458,1771432247907,-500.0,0.00017999,2]
[405942459,1771432247919,-500.0,0.00017999,2]
[405942460,1771432247930,-500.0,0.00017999,2]
[405942461,1771432247940,-392.9,0.00017999,2]
[405942462,1771432247951,-500.0,0.00017999,2]
[405942463,1771432247962,-619.85713991,0.00017999,2]
[405942464,1771432247972,-500.0,0.00017999,2]
[405942465,1771432247983,-500.0,0.00017999,2]
[405942466,1771432247994,-500.0,0.00017999,2]
[405942467,1771432248005,-500.0,0.00017999,2]
[405942468,1771432248016,-216.12,0.00017999,2]
[405942469,1771432248026,-300.0,0.00017999,2]
[405942470,1771432248035,-300.0,0.00017999,2]
[405942471,1771432248045,-666.0,0.00017999,2]
[405942472,1771432248055,-297.03102847,0.00017999,2]
[405942473,1771432248065,-183.47,0.00018,2]
[405942474,1771432248076,-3612908.4273382,0.00018,2]
[405942475,1771432248237,-2410.33332333,0.00018,2]
[405942476,1771432248321,-193681.5491673,0.00018,2]
[405942477,1771432248332,-109735.58932205,0.00018,2]
[405942478,1771432248341,-413608.45802415,0.00018,2]
[405942479,1771432248354,-4795.08805479,0.00018,2]
[405942480,1771432248365,-531.774,0.00018,2]
[405942481,1771432248378,-353.90530424,0.00018,2]
[405942482,1771432248440,-587.0,7.945e-05,2]
[405942483,1771432248450,-1709.95066447,0.000109,2]
[405942484,1771432248460,-2823.81387466,0.00018,2]
[405942485,1771432248472,-7172.78726096,0.00018,2]
[405942486,1771432248484,-576.25733696,0.00018,2]
[405942487,1771432248495,-500.0,0.00018,2]
[405942488,1771432248508,-3105.92860043,0.00018,2]
[405942489,1771432296123,1479.483,6.436e-05,2]
[405942490,1771432296364,163.631,6.436e-05,2]
[405942491,1771432312938,-4000.0,6.567e-05,2]
[405942492,1771432313733,-4000.0,6.567e-05,2]
[405942493,1771432314686,-4000.0,6.567e-05,2]
[405942494,1771432315542,-4000.0,6.567e-05,2]
[405942495,1771432316879,-4000.0,6.567e-05,2]
[405942496,1771432317885,-4000.0,6.567e-05,2]
[405942497,1771432318386,-4000.0,6.567e-05,2]
[405942498,1771432319057,-4000.0,6.567e-05,2]
[405942499,1771432319347,-4000.0,6.567e-05,2]
[405942500,1771432319744,-4000.0,6.567e-05,2]
[405942501,1771432320394,-4000.0,6.567e-05,2]
[405942502,1771432320791,-4000.0,6.567e-05,2]
[405942503,1771432321019,-4000.0,6.567e-05,2]
[405942504,1771432321387,-4000.0,6.567e-05,2]
[405942505,1771432321727,-4000.0,6.567e-05,2]
[405942506,1771432322100,-4000.0,6.567e-05,2]
[405942507,1771432322471,-4000.0,6.567e-05,2]
[405942508,1771432323034,-4000.0,6.567e-05,2]
[405942509,1771432323789,-4000.0,6.567e-05,2]
[405942510,1771432325385,-4000.0,6.567e-05,2]
[405942511,1771432326932,-4000.0,6.567e-05,2]
[405942512,1771432328146,-4000.0,6.567e-05,2]
[405942513,1771432328657,-4000.0,6.567e-05,2]
[405942514,1771432329211,-4000.0,6.567e-05,2]
[405942515,1771432330226,-4000.0,6.567e-05,2]
[405942516,1771432383702,-300.0,6.566e-05,2]
[405942517,1771432383724,-150.0,6.566e-05,2]
[405942518,1771432383750,-300.0,6.566e-05,2]
[405942519,1771432383774,-3250.0,6.567e-05,2]
[405942520,1771432384692,10000.01,6.548e-05,2]
[405942521,1771432384713,10000.01,6.548e-05,2]
[405942522,1771432384734,10000.01,6.548e-05,2]
[405942523,1771432384756,8309.97,6.548e-05,2]
[405942524,1771432385917,-4000.0,6.567e-05,2]
[405942525,1771432387475,1138.93120987,6.4e-05,3]
[405942526,1771432387520,551.10879013,6.4e-05,3]
[405942527,1771432387541,1576.75362966,6.4e-05,3]
[405942528,1771432387575,2919.00738765,6.4e-05,3]
[405942529,1771432387628,5490.22853333,6.4e-05,3]
[405942530,1771432389333,-4000.0,6.567e-05,2]
[405942531,1771432389707,-4000.0,6.567e-05,2]
[405942532,1771432390879,-500.0,6.566e-05,2]
[405942533,1771432390904,-500.0,6.566e-05,2]
[405942534,1771432390928,-500.0,6.566e-05,2]
[405942535,1771432390953,-500.0,6.566e-05,2]
[405942536,1771432390981,-500.0,6.566e-05,2]
[405942537,1771432391010,-500.0,6.566e-05,2]
[405942538,1771432391035,-500.0,6.566e-05,2]
[405942539,1771432391061,-500.0,6.567e-05,2]
[405942540,1771432391104,-500.0,6.566e-05,2]
[405942541,1771432391132,-3500.0,6.567e-05,2]
[405942542,1771432391187,-500.0,6.566e-05,2]
[405942543,1771432391215,-500.0,6.566e-05,2]
[405942544,1771432391240,-3000.0,6.567e-05,2]
[405942545,1771432391337,14.02044936,6.5e-05,2]
[405942546,1771432391359,240.40955064,6.5e-05,2]
[405942547,1771432391470,-500.0,6.566e-05,2]
[405942548,1771432391495,-500.0,6.566e-05,2]
[405942549,1771432391522,-500.0,6.566e-05,2]
[405942550,1771432391547,-500.0,6.566e-05,2]
[405942551,1771432391573,-500.0,6.566e-05,2]
[405942552,1771432391598,-500.0,6.566e-05,2]
[405942553,1771432391624,-500.0,6.566e-05,2]
[405942554,1771432391653,-500.0,6.566e-05,2]
[405942555,1771432396742,150.0,6.54e-05,2]
[405942556,1771432411327,500.0,6.54e-05,2]
[405942557,1771432411864,-500.0,6.566e-05,2]
[405942558,1771432411888,-500.0,6.566e-05,2]
[405942559,1771432411913,-500.0,6.566e-05,2]
[405942560,1771432411936,-500.0,6.566e-05,2]
[405942561,1771432411959,-500.0,6.566e-05,2]
[405942562,1771432411982,-500.0,6.566e-05,2]
[405942563,1771432412006,-500.0,6.566e-05,2]
[405942564,1771432412030,-500.0,6.566e-05,2]
[405942565,1771432412491,-500.0,6.566e-05,2]
[405942566,1771432412515,-500.0,6.566e-05,2]
[405942567,1771432412539,-500.0,6.566e-05,2]
[405942568,1771432412562,-500.0,6.566e-05,2]
[405942569,1771432412585,-500.0,6.566e-05,2]
[405942570,1771432412608,-500.0,6.566e-05,2]
[405942571,1771432412633,-500.0,6.566e-05,2]
[405942572,1771432412659,-276.59776821,6.566e-05,2]
[405942573,1771432412682,-223.40223179,6.566e-05,2]
[405942574,1771432412715,-276.59776821,6.566e-05,2]
[405942575,1771432412739,-500.0,6.566e-05,2]
[405942576,1771432412761,-3223.40223179,6.567e-05,2]
[405942577,1771432413143,-4000.0,6.567e-05,2]
[405942578,1771432413554,-4000.0,6.567e-05,2]
[405942579,1771432413875,-4000.0,6.567e-05,2]
[405942580,1771432414247,-4000.0,6.567e-05,2]
[405942581,1771432414728,-4000.0,6.567e-05,2]
[405942582,1771432415236,-4000.0,6.567e-05,2]
[405942583,1771432416539,-4000.0,6.567e-05,2]
[405942584,1771432417044,-4000.0,6.567e-05,2]
[405942585,1771432417719,-4000.0,6.567e-05,2]
[405942586,1771432418301,-4000.0,6.567e-05,2]
[405942587,1771432418942,-4000.0,6.567e-05,2]
[405942588,1771432419442,-4000.0,6.567e-05,2]
[405942589,1771432420188,-4000.0,6.567e-05,2]
[405942590,1771432420673,-4000.0,6.567e-05,2]
[405942591,1771432421016,-4000.0,6.567e-05,2]
[405942592,1771432421349,-4000.0,6.567e-05,2]
[405942593,1771432421852,-4000.0,6.567e-05,2]
[405942594,1771432422192,-4000.0,6.567e-05,2]
[405942595,1771432422629,-4000.0,6.567e-05,2]
[405942596,1771432423206,-4000.0,6.567e-05,2]
[405942597,1771432470086,-4000.0,6.567e-05,2]
[405942598,1771432470451,-4000.0,6.567e-05,2]
[405942599,1771432471043,-4000.0,6.567e-05,2]
[405942600,1771432472284,-4000.0,6.567e-05,2]
[405942601,1771432472841,-4000.0,6.567e-05,2]
[405942602,1771432521499,-1200.0,6.566e-05,2]
[405942603,1771432521521,-2800.0,6.567e-05,2]
[405942604,1771432522633,-4000.0,6.567e-05,2]
[405942605,1771432523806,-3115.7322085,6.567e-05,2]
[405942606,1771432523827,-168.0,6.567e-05,3]
[405942607,1771432523851,-716.2677915,6.567e-05,2]
[405942608,1771432524866,-4000.0,6.567e-05,2]
[405942609,1771432526303,-4000.0,6.567e-05,2]
[405942610,1771432528054,-4000.0,6.567e-05,2]
[405942611,1771432529620,-4000.0,6.567e-05,2]
[405942612,1771432531678,-4000.0,6.567e-05,2]
[405942613,1771432532668,-4000.0,6.567e-05,2]
[405942614,1771432533695,-4000.0,6.567e-05,2]
[405942615,1771432538291,-4000.0,6.567e-05,2]
[405942616,1771432538755,-4000.0,6.567e-05,2]
[405942617,1771432539075,-4000.0,6.567e-05,2]
[405942618,1771432638721,150.0,0.00011233,120]
[405942619,1771432734001,219.85,6.56e-05,2]
[405942620,1771432736295,8889.75044936,6.5e-05,2]
[405942621,1771432736320,1110.24955064,6.5e-05,2]